Cogmind - Beta 15 @@@ ROGUE MODE // 2025.08.18 @ 21:22:58 Player: Zen9890 Result: Destroyed by T0-SAO(R) with Subdweller Machine Gun Performance ------------- Evolutions (0) 0 Regions Visited (2) 400 Robots Destroyed (10) 50 Value Destroyed (198) 198 Prototype IDs (11) 220 Alien Tech Used (0) 0 Bonus (-10) -10 TOTAL SCORE: 858 Bonus ------- Friendly Fire -10 Cogmind --------- Core Integrity 0/250 Matter 300/300 Energy 125/125 System Corruption 0% Temperature Cool (0) Movement Treading (160) Location -10/Subcaves Parts ------- > --- POWER (1) -------- Light Ion Engine > --- PROPULSION (2) --- Light Treads Aluminum Leg > --- UTILITY (2) ------ Medium Storage Unit > --- WEAPON (2) ------- Medium Laser Assault Rifle > --- INVENTORY (10) --- Light Treads Aluminum Leg Subdweller Optics Improved Terrain Scanner Seismic Detector Grenade Launcher Mining Laser Multitool Peak State ------------ > --- POWER ------------ Ion Engine > --- PROPULSION ------- Light Treads Light Treads Aluminum Leg Aluminum Leg > --- UTILITY ---------- Medium Storage Unit Seismic Detector Tower Shield > --- WEAPON ----------- Medium Laser Medium Laser Assault Rifle Light Assault Rifle > --- INVENTORY -------- Light Ion Engine Aluminum Leg Aluminum Leg Small Storage Unit Subdweller Optics Improved Terrain Scanner Grenade Launcher Mining Laser [Rating: 32] Favorites ----------- Power Ion Engine Engine Ion Engine Propulsion Aluminum Leg Treads Light Treads Leg Aluminum Leg Utility Medium Storage Unit Device Seismic Detector Storage Medium Storage Unit Protection Tower Shield Weapon Medium Laser Energy Gun Medium Laser Ballistic Gun Assault Rifle Launcher Grenade Launcher Special Weapon Mining Laser Build | -11 -10 -10 ------- Run | Yrd Mat Sub Slots Evolved . | . . . Power . | . . . Propulsion . | . . . Utility . | . . . Weapon . | . . . Parts Attached 18 | 8 1 9 Power 2 | 1 . 1 Engine 2 | 1 . 1 Core . | . . . Reactor . | . . . Propulsion 5 | 2 . 3 Treads 2 | . . 2 Leg 3 | 2 . 1 Wheel . | . . . Hover . | . . . Flight . | . . . Utility 5 | 3 1 1 Device 2 | 2 . . Storage 2 | 1 1 . Processor . | . . . Hackware . | . . . Protection 1 | . . 1 Artifact . | . . . Weapon 6 | 2 . 4 Energy Gun 2 | 2 . . Energy Cannon . | . . . Ballistic Gun 2 | . . 2 Ballistic Cannon . | . . . Launcher 1 | . . 1 Special Weapon 1 | . . 1 Impact Weapon . | . . . Slashing Weapon . | . . . Piercing Weapon . | . . . Special Melee Weapon . | . . . Unidentified Prototypes . | . . . Parts Lost 6 | . . 6 Power 1 | . . 1 Propulsion 2 | . . 2 Utility 1 | . . 1 Weapon 2 | . . 2 Highest Loss Streak 4 | . . 4 To Critical Strikes . | . . . Average Backups 6 | 3 7 6 Power . | . 1 . Propulsion 1 | 1 2 1 Utility 1 | . 1 2 Weapon 2 | 1 2 2 Tool/Special . | . . . Unused Backups 3 | . . 3 Power . | . . . Propulsion 1 | . . 1 Utility 1 | . . 1 Weapon . | . . . Tool/Special 1 | . . 1 Average Slot Usage (%) 83 | . 100 79 Engine 10 | . 14 9 Treads 5 | . . 6 Leg 20 | . 28 18 Device 7 | . 14 5 Storage 10 | . 14 10 Protection 2 | . . 3 Energy Gun 17 | . 28 15 Ballistic Gun 5 | . . 7 Peak Build Rating 32 | 9 8 32 Average Rating 15 | 5 7 18 On Entrance 5 | . 7 8 Naked Turns . | . . . Heaviest Build 61 | 15 20 61 Greatest Support 40 | 20 20 40 Greatest Overweight (x) 2 | . . 2 Average Overweight (x) . | . . . Largest Inventory Capacity 10 | 8 10 10 Average Capacity 9 | 7 9 9 Most Carried 10 | 6 8 10 Average Carried 6 | 4 7 6 Final Capacity 10 | 8 10 10 Final Carried 8 | 6 8 8 Class Distribution -------------------- 62% | Mutant 37% | Gunner Dominant Class ---------------- Mutant | -10/Materials Gunner | -10/Subcaves Resources | -11 -10 -10 ----------- Run | Yrd Mat Sub Matter Collected 507 | 280 . 227 Remotely . | . . . Salvage Created 346 | 149 . 197 Parts 23 | 10 . 13 Haulers Intercepted . | . . . Recyclers Shooed . | . . . Parts Field Recycled . | . . . Retrieved Matter . | . . . Parts Self-Destructed 16 | . . 16 Prevented . | . . . Kills | -11 -10 -10 ------- Run | Yrd Mat Sub Combat Hostiles Destroyed 5 | . . 5 Guns 5 | . . 5 Classes Destroyed 6 | 2 . 4 Tunneler 3 | 3 . . Recycler 1 | 1 . . Turret 1 | . . 1 Swarmer 2 | . . 2 Grunt 2 | . . 2 Subdweller 1 | . . 1 Best Kill Streak 4 | 4 . 2 Combat Bots Only 2 | . . 2 Max Kills in Single Turn 1 | 1 . 1 Gunslinging . | . . . Exploded . | . . . Melee . | . . . Uniques/NPCs Destroyed . | . . . Combat | -11 -10 -10 -------- Run | Yrd Mat Sub Hostile Shots Fired 212 | . . 212 Missed 87 | . . 87 Hits 125 | . . 125 Projectile 125 | . . 125 Damage Taken 1192 | . . 1192 Core 269 | . . 269 Absorbed by Shields . | . . . Core Remaining (%) 100 | 100 . . Volleys Fired 43 | 6 . 37 Largest 3 | 2 . 3 Hottest 120 | 100 . 120 Shots Fired 91 | 12 . 79 Gun 88 | 12 . 76 Cannon . | . . . Launcher . | . . . Special 3 | . . 3 Kinetic 31 | . . 31 Thermal 60 | 12 . 48 Explosive . | . . . Electromagnetic . | . . . Robot Hit Streak 10 | 3 . 10 Robot Miss Streak 3 | 1 . 3 Penetration Max . | . . . Secondary Targets . | . . . Shots Hit Robots 50 | 7 . 43 Core Hits 19 | 5 . 14 Critical Kills . | . . . Critical Parts Destroyed . | . . . Critical Strikes 2 | 1 . 1 Burn 2 | 1 . 1 Melee Attacks . | . . . Impact . | . . . Slashing . | . . . Piercing . | . . . Sneak Attacks . | . . . Combat Hostiles . | . . . Follow-up Attacks . | . . . Damage Inflicted 576 | 88 . 488 Guns 576 | 88 . 488 Cannons . | . . . Explosions . | . . . Melee . | . . . Ramming . | . . . Kinetic 178 | . . 178 Thermal 398 | 88 . 310 Explosive . | . . . Electromagnetic . | . . . Impact . | . . . Slashing . | . . . Piercing . | . . . Highest Corruption . | . . . Average Corruption . | . . . Corruption Purged . | . . . Corruption Blocked . | . . . Overload Shots . | . . . Overflow Damage . | . . . Projectiles . | . . . Explosions . | . . . Melee . | . . . Knockbacks . | . . . Impact . | . . . Kinetic . | . . . Secondary . | . . . Self-Inflicted Damage . | . . . Shots . | . . . Rammed . | . . . Targets Rammed . | . . . Kicked . | . . . Crushed . | . . . Highest Temperature 117 | 117 . 27 Average Temperature 25 | 40 . 9 Received Heat Transfer 651 | . . 651 Siege Activations . | . . . Martial Activations . | . . . Shielding Activations . | . . . Robots Disrupted . | . . . Combat Hostiles . | . . . Robots Corrupted . | . . . Combat Hostiles . | . . . Parts Fried . | . . . Impact Corruptions . | . . . Robots Melted . | . . . Combat Hostiles . | . . . Parts Melted . | . . . Heat Transferred 1332 | 333 . 999 Parts Sabotaged . | . . . Parts Stolen . | . . . Parts Stripped . | . . . Power Chain Reactions . | . . . Alert | -11 -10 -10 ------- Run | Yrd Mat Sub Maximum Alert Level . | . . . Low Security (%) 100 | 100 100 . Level 1 . | . . . Level 2 . | . . . Level 3 . | . . . Level 4 . | . . . Level 5 . | . . . High Security . | . . . Max Security . | . . . Peak Influence 30 | 5 30 . Initial . | . . . Average 3 | 1 6 . Influence Increases 370 | 20 30 320 Destroy 0b10 Robot/C 100 | . . 100 Destroy 0b10 Robot/NC 20 | 20 . . Destroy Leader 10 | . . 10 Select Force Hacks 30 | . 30 . Lose Combat Pursuer 210 | . . 210 Influence Decreases 264 | 20 30 214 Time Decay 204 | 20 30 154 Lost Part 60 | . . 60 Squads Dispatched 1 | . 1 . Investigation 1 | . 1 . Extermination . | . . . Reinforcement . | . . . Assault . | . . . Garrison . | . . . Intercept . | . . . Searches Triggered . | . . . Construction Impeded . | . . . Haulers Reinforced . | . . . Active Scanning Responses . | . . . Cargo Convoy Interrupts . | . . . Stealth | -11 -10 -10 --------- Run | Yrd Mat Sub Distress Signals 1 | . 1 . Communications Jammed . | . . . Distress Signals . | . . . Times Spotted 17 | . 1 16 Peak Tracking Total 3 | . 2 3 Tactical Retreats 8 | . . 8 Traps | -11 -10 -10 ------- Run | Yrd Mat Sub Traps Triggered 2 | . . 2 Indirectly . | . . . Trap Hack Attempts . | . . . Triggered . | . . . Disarmed . | . . . Reprogrammed . | . . . Reused . | . . . Traps Extracted . | . . . Installed . | . . . Triggered . | . . . Machines | -11 -10 -10 ---------- Run | Yrd Mat Sub Machines Disabled 3 | . . 3 Max in Single Turn 1 | . . 1 Machines Repaired . | . . . Machines Dismantled . | . . . Machines Sabotaged . | . . . Overloaded Fab Kills . | . . . Hacking | -11 -10 -10 --------- Run | Yrd Mat Sub Machines Accessed 2 | . 1 1 Terminals . | . . . Fabricators . | . . . Repair Stations . | . . . Recycling Units 1 | . 1 . Scanalyzers . | . . . Garrison Access . | . . . Total Hacks 13 | . 4 9 Successful 12 | . 3 9 Failed 1 | . 1 . Catastrophic . | . . . Database Lockouts . | . . . Manual 2 | . 1 1 Terminals . | . . . Fabricators . | . . . Repair Stations . | . . . Recycling Units 4 | . 4 . Scanalyzers . | . . . Garrison Access . | . . . Terminal Hacks 9 | . . 9 Record 8 | . . 8 Proto ID Catalog 1 | . . 1 Fabricator Hacks . | . . . Repair Station Hacks . | . . . Recycling Unit Hacks 2 | . 2 . Report Inventory 1 | . 1 . Retrieve Components 1 | . 1 . Scanalyzer . | . . . Garrison Access Hacks . | . . . Unauthorized Hacks 1 | . 1 . Terminals . | . . . Fabricators . | . . . Repair Stations . | . . . Recycling Units 1 | . 1 . Tunnel 1 | . 1 . Scanalyzers . | . . . Garrison Access . | . . . Data Cores Recovered . | . . . Used . | . . . Hacking Detections 1 | . 1 . Full Trace Events . | . . . Feedback Events . | . . . Feedback Blocked . | . . . Robot Schematics Acquired . | . . . Robots Built . | . . . Authchips . | . . . Time . | . . . Total Robot Build Rating . | . . . Part Schematics Acquired . | . . . Parts Built . | . . . Authchips . | . . . Time . | . . . Total Part Build Rating . | . . . Parts Repaired . | . . . Time . | . . . Parts Recycled . | . . . Recycled Matter . | . . . Retrieved Matter . | . . . Retrieved Components 3 | . 3 . Parts Scanalyzed . | . . . Part Schematics Acquired . | . . . Parts Damaged . | . . . Bothacking | -11 -10 -10 ------------ Run | Yrd Mat Sub Used RIF Installer . | . . . Robots Hacked . | . . . Non-combat . | . . . Combat . | . . . Robot Hacks Applied . | . . . Relay Couplers Released . | . . . Fabnet Peak Effective % . | . . . Robots Rewired . | . . . Allies Hacked . | . . . Hacks Repelled . | . . . Allies | -11 -10 -10 -------- Run | Yrd Mat Sub Total Allies . | . . . Largest Group . | . . . Highest-Rated Group . | . . . Highest-Rated Ally . | . . . Total Orders . | . . . Ally Attacks . | . . . Total Damage . | . . . Kills . | . . . Allies Corrupted . | . . . Allies Melted . | . . . Intel | -11 -10 -10 ------- Run | Yrd Mat Sub Active Infowar (turns) 626 | 47 146 433 Terrain 18 | 18 . . Seismic 608 | 29 146 433 Robot Analysis Total . | . . . Derelict Logs Recovered . | . . . Drone Launches . | . . . Drone Recoveries . | . . . Exploration | -11 -10 -10 ------------- Run | Yrd Mat Sub Turns Passed 974 | 129 146 699 Spaces Moved 456 | 82 65 309 Core 12 | 11 . 1 Treads 132 | . . 132 Legs 312 | 71 65 176 Wheels . | . . . Hover . | . . . Flight . | . . . Fastest Speed 50 | 50 120 120 Average Speed 155 | 110 120 175 Slowest Speed 260 | 120 120 260 Overloaded Moves . | . . . Propulsion Burnouts . | . . . Robots Hopped . | . . . Potential Cave-ins . | . . . Cave-ins Triggered . | . . . Exploration Rate (%) 10 | 5 10 16 Regions Visited 2 Branch Regions 1 Pre-discovered Areas 1 | . 1 . Known Exits Taken . | . . . Unknown Exits Taken 2 | 1 1 . Scrap Searched . | . . . Spaces Dug . | . . . Terrain Destroyed . | . . . Melee . | . . . Projectile . | . . . AOE . | . . . Terrain Rammed . | . . . Walls Destroyed . | . . . Machines Disabled . | . . . Actions | -11 -10 -10 --------- Run | Yrd Mat Sub Total 628 | 108 132 388 Wait 66 | . 65 1 Move 454 | 81 64 309 Hop . | . . . Pick Up 35 | 13 2 20 Fast Attach 2 | . . 2 Attach 19 | 7 . 12 Detach 1 | . . 1 Swap 5 | 1 1 3 Drop 3 | . . 3 Fire 43 | 6 . 37 Melee . | . . . Ram . | . . . Kick . | . . . Crush . | . . . Escape Stasis . | . . . Rewire . | . . . Trap . | . . . Miscellaneous . | . . . Route ------- -11/Scrapyard -10/Materials -10/Subcaves (discovered 1 exit: [*Rec]) History --------- Turn | Location | Event 4 | -11/Scrapyard | Discovered new exit (range 15) 130 | -11/Scrapyard | Entered Materials 260 | -10/Materials | Discovered new exit (range 7) 276 | -10/Materials | Entered Subcaves 277 | -10/Subcaves | Approached by a straggling Scientist 305 | -10/Subcaves | Build established: Mutant 376 | -10/Subcaves | Visited 4L-MR0's lab 392 | -10/Subcaves | Found Tower Shield 399 | -10/Subcaves | Attached Tower Shield, gained temporary slots: Power, Propulsion x2, Utility x2, Weapon x2 688 | -10/Subcaves | Build established: Gunner 744 | -10/Subcaves | Discovered new exit (range 10) 842 | -10/Subcaves | Core integrity fell below 50% 868 | -10/Subcaves | Lost 4 parts (1p1n2w) 947 | -10/Subcaves | Core integrity fell below 20% 975 | -10/Subcaves | Destroyed by T0-SAO(R) with Subdweller Machine Gun Last Messages --------------- 00873_ Acquired Lgt. Treads. 00877_ Acquired Seismic Detector. 00881_ Acquired 25 matter. 00895_ Acquired 10 matter. 00896_ Acquired 46 matter. 00899_ Dropped Aluminum Leg. 00903_ Acquired Multitool. 00930_ Triggered Piercing Trap. 00930_ Spikes shoot up from the floor. 00930_ Critical hit (Impale). 00930_ Aluminum Leg destroyed. 00930_ Critical hit (Impale). 00938_ Triggered Shrapnel Trap. 00938_ An expanding cloud of shrapnel blasts out in all directions. 00958_ Acquired Aluminum Leg. 00959_ Acquired 13 matter. 00971_ T0-SAO(R) affixes Scrap Shield Fragment to Scrap Shield. 00972_ Autobeam Turret destroyed. Map ----- +----------------------------------------------------+ | ?????????????????????????????????????????????????? | | ?????????????????????????????????????????????????? | | ?????????????????????????????????????????????????? | | ?????????????????????????????????????????????????? | | ?????????????????????????????????????????????????? | | ?????????????????????????????????????????????????? | | ?????????????????????????????????????????????????? | | ???????????????????????????????????? ????????????? | | ???????????????????????????????????? ##??????????? | | ????????????????????????????????????? ??????#?? | | ????????????????????????????????????? ????? #?? | | ????????????????????????????????????""" ????? #?? | | ???????????????????????????????????"""" "????# #?? | | ????????????????????#??????????????#"""""#### ##? | | ???????????????????# ??????###????# ""#" #? | | ???????????????????# ####### #???## ?#" #?? | | ???????????????????# #???# ?#" " #?? | | ???????????????????? ##???# ##" ""###? | | ?????????????????????? #???# ## "" "# #? | | ??????????????????????? #???# #? | | ???????????????????????? ##??# ^ ^#? | | ?????????????????######### #??## ^ ##? | | ?????????????????#"" "#?# ##### ## #?? | | ?????????????????#" #?# ###! # ###? | | ?????????????????#" ### ##%% # ## | | ????????????????##"" @ R # | | ????????????????#< ! R % "" # | | ????????????????##"" #; "" # | | ?????????????????#" % # #######"" # | | ?????????????????# ## #?????#"" # | | ?????????????????# "" "## #??#### " ## | | ?????????????????########## #??# " ###? | | ??????????????????????????# #??# #####??? | | ??????????????????????????# # ###??# #???????? | | ?????????????????????????#####% ##????# ????????? | | ???????????????????????### # #???# ?????????? | | ??????????????????????## ###### ??????????? | | ??????????????????????# ## ## ##???????????? | | ??????????????????????# #### #????????????? | | ??????????????????????## ### ##???????????? | | ???????????????????????## ### #???????????? | | ????????????????????????## # ??????????? | | ?????????????????????????# # ????????? | | ?????????????????????????# ### ## # # ???????? | | ?????????????????????????###### #### # ???????? | | ?????????????????????????????# ## ## ? ???????? | | ?????????????????????????????# #?###?#???????? | | ?????????????????????????????### ##????????????? | | ???????????????????????????????## #????????????? | | ???????????????????????????????# ##????????????? | +----------------------------------------------------+ Best States ------------- Heat Dissipation 25 Energy Generation 10 Energy Capacity 250 Matter Stores 300 Matter Capacity 300 Sight Range 16 Terrain Scan Range 16 Terrain Scan Density 10 Armor Coverage 2000 Evasion (%) 55 Recoil Reduction 2 Item Schematics ----------------- None Robot Schematics ------------------ None Fabricated ------------ Nothing Repaired ---------- Nothing Alien Tech Used ----------------- None Achievements -------------- None Challenges ------------ None Game ------ Seed HelicalLightningSpiker Manual? 0 Play Time 00:13:26 Cumulative 22.9 hours Start 2025.08.18 @ 21:11:20 End 2025.08.18 @ 21:22:58 Sessions 1 Manual Loads 0 Difficulty Rogue Special Mode None Game No. 32 Rogue 32 Adventurer 0 Explorer 0 Win Type - Total 0 Types 0/0/0/0/0/0/0/0/0/0 Lore% 13 Gallery% 28 Achievement% 27 Wizard Run 0 Options --------- Layout 1 ASCII 0 Keyboard 0 Movement Mouse Keybinds 0 Fullscreen 1 Font 24/Smallcaps Map View 50x35 Zoom Use 0% Tactical HUD 1 Map Filters NONE Filters NONE Steam 1 RUN: 8f421253-8217-4c69-a326-724285040793